fUST/lending_fUST_20250929
["ID","MTS","AMOUNT","RATE_DAILY","PERIOD"]
[388371048,1759128669299,-224.32813165,0.00027945,7]
[388371049,1759128669309,-480.0,0.00027945,7]
[388371050,1759128669318,-480.0,0.00027945,7]
[388371051,1759128669332,-480.0,0.00027945,7]
[388371052,1759128669343,-539.31,0.00027945,7]
[388371053,1759128669353,-518.33,0.00027945,7]
[388371054,1759128669363,-500.0,0.00027945,7]
[388371055,1759128669372,-487.02,0.00027945,7]
[388371056,1759128669381,-480.0,0.00027945,7]
[388371057,1759128669391,-908.56,0.00027945,7]
[388371058,1759128669401,-480.0,0.00027945,7]
[388371059,1759128669410,-480.0,0.00027945,7]
[388371060,1759128669420,-776.38,0.00027945,7]
[388371061,1759128669430,-480.0,0.00027945,7]
[388371062,1759128669439,-505.679891,0.00027945,7]
[388371063,1759128669449,-640.75,0.00027945,7]
[388371064,1759128669459,-679.28,0.00027945,7]
[388371065,1759128669468,-836.96,0.00027945,7]
[388371066,1759128669478,-480.0,0.00027945,7]
[388371067,1759128669487,-480.0,0.00027945,7]
[388371068,1759128669622,-3041.42,0.00027945,7]
[388371069,1759128669632,-823.77,0.00027945,7]
[388371070,1759128669642,-691.12,0.00027945,7]
[388371071,1759128669652,-480.0,0.00027945,7]
[388371072,1759128669662,-1311.86,0.00027945,7]
[388371073,1759128669672,-3679.36,0.00027945,7]
[388371074,1759128669682,-480.0,0.00027945,7]
[388371075,1759128669692,-480.0,0.00027945,7]
[388371076,1759128669700,-802.57,0.00027945,7]
[388371077,1759128669710,-812.92,0.00027945,7]
[388371078,1759128669722,-481.37746699,0.00027945,7]
[388371079,1759128669732,-1609.36,0.00027945,7]
[388371080,1759128669743,-481.38661276,0.00027945,7]
[388371081,1759128669756,-954.8,0.00027945,7]
[388371082,1759128669765,-480.0,0.00027945,7]
[388371083,1759128669775,-480.0,0.00027945,7]
[388371084,1759128669784,-1015.79,0.00027945,7]
[388371085,1759128669794,-1494.37,0.00027945,7]
[388371086,1759128669803,-480.0,0.00027945,7]
[388371087,1759128669813,-480.0,0.00027945,7]
[388371088,1759128669822,-480.0,0.00027945,7]
[388371089,1759128669831,-897.38,0.00027945,7]
[388371090,1759128669841,-480.0,0.00027945,7]
[388371091,1759128669851,-495.43616252,0.00027945,7]
[388371092,1759128669861,-480.0,0.00027945,7]
[388371093,1759128669871,-480.0,0.00027945,7]
[388371094,1759128669880,-1099.25,0.00027945,7]
[388371095,1759128669889,-480.0,0.00027945,7]
[388371096,1759128669899,-480.0,0.00027945,7]
[388371097,1759128669909,-1540.07,0.00027945,7]
[388371098,1759128669918,-1427.44,0.00027945,7]
[388371099,1759128669928,-480.0,0.00027945,7]
[388371100,1759128669938,-333.07984678,0.00027945,7]
[388371101,1759128669948,-1051.85,0.00027945,7]
[388371102,1759128669957,-1384.27,0.00027945,7]
[388371103,1759128669967,-480.0,0.00027945,7]
[388371104,1759128669977,-798.74,0.00027945,7]
[388371105,1759128669987,-1398.68,0.00027945,7]
[388371106,1759128669997,-480.0,0.00027945,7]
[388371107,1759128670007,-480.0,0.00027945,7]
[388371108,1759128670018,-790.29,0.00027945,7]
[388371109,1759128670029,-518.21598988,0.00027945,7]
[388371110,1759128670038,-780.33,0.00027945,7]
[388371111,1759128670047,-680.16,0.00027945,7]
[388371112,1759128670057,-480.0,0.00027945,7]
[388371113,1759128670066,-5231.52,0.00027945,7]
[388371114,1759128670077,-759.34,0.00027945,7]
[388371115,1759128670086,-550.02,0.00027945,7]
[388371116,1759128670096,-1189.57,0.00027945,7]
[388371117,1759128670106,-530.15,0.00027945,7]
[388371118,1759128670115,-480.0,0.00027945,7]
[388371119,1759128670124,-813.1,0.00027945,7]
[388371120,1759128670134,-480.0,0.00027945,7]
[388371121,1759128670143,-480.0,0.00027945,7]
[388371122,1759128670153,-1103.84,0.00027945,7]
[388371123,1759128670162,-480.0,0.00027945,7]
[388371124,1759128670172,-1080.8,0.00027945,7]
[388371125,1759128670181,-2648.62,0.00027945,7]
[388371126,1759128670191,-585.19,0.00027945,7]
[388371127,1759128670200,-480.0,0.00027945,7]
[388371128,1759128670209,-2414.31,0.00027945,7]
[388371129,1759128670218,-480.0,0.00027945,7]
[388371130,1759128670228,-480.0,0.00027945,7]
[388371131,1759128670238,-805.49,0.00027945,7]
[388371132,1759128670247,-694.56,0.00027945,7]
[388371133,1759128670256,-480.0,0.00027945,7]
[388371134,1759128670266,-3800.0,0.00027945,7]
[388371135,1759128670275,-1015.59,0.00027945,7]
[388371136,1759128670283,-480.0,0.00027945,7]
[388371137,1759128670294,-638.48,0.00027945,7]
[388371138,1759128670303,-772.28,0.00027945,7]
[388371139,1759128670313,-480.0,0.00027945,7]
[388371140,1759128670322,-480.0,0.00027945,7]
[388371141,1759128670336,-2461.93,0.00027945,7]
[388371142,1759128670345,-588.87,0.00027945,7]
[388371143,1759128670355,-882.11,0.00027945,7]
[388371144,1759128670364,-756.4,0.00027945,7]
[388371145,1759128670374,-344.53714551,0.00027945,7]
[388371146,1759128670383,-3874.46,0.00027945,7]
[388371147,1759128670392,-480.0,0.00027945,7]
[388371148,1759128670405,-943.15,0.00027945,7]
[388371149,1759128670415,-480.0,0.00027945,7]
[388371150,1759128670424,-480.0,0.00027945,7]
[388371151,1759128670433,-480.0,0.00027945,7]
[388371152,1759128670442,-480.0,0.00027945,7]
[388371153,1759128670451,-2236.08,0.00027945,7]
[388371154,1759128670460,-2179.33,0.00027945,7]
[388371155,1759128670470,-480.0,0.00027945,7]
[388371156,1759128670480,-952.18,0.00027945,7]
[388371157,1759128670489,-728.03,0.00027945,7]
[388371158,1759128670498,-480.0,0.00027945,7]
[388371159,1759128670507,-480.0,0.00027945,7]
[388371160,1759128670516,-1523.82,0.00027945,7]
[388371161,1759128670526,-1023.32,0.00027945,7]
[388371162,1759128670535,-1958.0,0.00027945,7]
[388371163,1759128670544,-480.0,0.00027945,7]
[388371164,1759128670554,-2983.24,0.00027945,7]
[388371165,1759128670563,-992.29,0.00027945,7]
[388371166,1759128670573,-720.44,0.00027945,7]
[388371167,1759128670582,-480.0,0.00027945,7]
[388371168,1759128670593,-1135.45,0.00027945,7]
[388371169,1759128670602,-643.05,0.00027945,7]
[388371170,1759128670611,-821.74,0.00027945,7]
[388371171,1759128670621,-296.18186812,0.00027945,7]
[388371172,1759128670631,-169.63260729,0.00027945,7]
[388371173,1759128670641,-920.3,0.00027945,7]
[388371174,1759128670650,-1452.85,0.00027945,7]
[388371175,1759128670659,-480.0,0.00027945,7]
[388371176,1759128670668,-1214.29,0.00027945,7]
[388371177,1759128670678,-480.0,0.00027945,7]
[388371178,1759128670687,-2970.42,0.00027945,7]
[388371179,1759128670696,-480.0,0.00027945,7]
[388371180,1759128670706,-480.0,0.00027945,7]
[388371181,1759128670715,-1197.94,0.00027945,7]
[388371182,1759128670724,-1027.93,0.00027945,7]
[388371183,1759128670733,-480.0,0.00027945,7]
[388371184,1759128670742,-582.32,0.00027945,7]
[388371185,1759128670751,-480.0,0.00027945,7]
[388371186,1759128670761,-8455.84,0.00027945,7]
[388371187,1759128670770,-926.52,0.00027945,7]
[388371188,1759128670780,-480.0,0.00027945,7]
[388371189,1759128670789,-480.0,0.00027945,7]
[388371190,1759128670800,-480.0,0.00027945,7]
[388371191,1759128670809,-480.0,0.00027945,7]
[388371192,1759128670819,-870.42,0.00027945,7]
[388371193,1759128670828,-892.52,0.00027945,7]
[388371194,1759128670838,-809.33,0.00027945,7]
[388371195,1759128670848,-480.0,0.00027945,7]
[388371196,1759128670858,-480.0,0.00027945,7]
[388371197,1759128670867,-8536.49,0.00027945,7]
[388371198,1759128670877,-471.55374942,0.00027945,7]
[388371199,1759128670886,-943.86,0.00027945,7]
[388371200,1759128670895,-480.0,0.00027945,7]
[388371201,1759128670905,-480.0,0.00027945,7]
[388371202,1759128670914,-1624.12,0.00027945,7]
[388371203,1759128670923,-728.92,0.00027945,7]
[388371204,1759128670933,-765.58,0.00027945,7]
[388371205,1759128670942,-1117.74,0.00027945,7]
[388371206,1759128670951,-947.96,0.00027945,7]
[388371207,1759128670961,-1013.53,0.00027945,7]
[388371208,1759128670970,-4526.78,0.00027945,7]
[388371209,1759128670979,-480.0,0.00027945,7]
[388371210,1759128670988,-820.4,0.00027945,7]
[388371211,1759128670998,-480.0,0.00027945,7]
[388371212,1759128671007,-480.0,0.00027945,7]
[388371213,1759128671016,-4703.57,0.00027945,7]
[388371214,1759128671026,-1937.43,0.00027945,7]
[388371215,1759128671035,-1633.02,0.00027945,7]
[388371216,1759128671043,-480.0,0.00027945,7]
[388371217,1759128671052,-170.90639764,0.00027945,7]
[388371218,1759128671061,-480.0,0.00027945,7]
[388371219,1759128671070,-480.0,0.00027945,7]
[388371220,1759128671079,-1672.86,0.00027945,7]
[388371221,1759128671088,-480.0,0.00027945,7]
[388371222,1759128671098,-2059.81,0.00027945,7]
[388371223,1759128671108,-1079.43,0.00027945,7]
[388371224,1759128671117,-791.53,0.00027945,7]
[388371225,1759128671127,-480.0,0.00027945,7]
[388371226,1759128671136,-480.0,0.00027945,7]
[388371227,1759128671146,-742.4,0.00027945,7]
[388371228,1759128671155,-816.1,0.00027945,7]
[388371229,1759128671165,-480.0,0.00027945,7]
[388371230,1759128671174,-480.0,0.00027945,7]
[388371231,1759128671183,-959.53,0.00027945,7]
[388371232,1759128671192,-480.0,0.00027945,7]
[388371233,1759128671202,-1905.59,0.00027945,7]
[388371234,1759128671211,-480.0,0.00027945,7]
[388371235,1759128671221,-480.0,0.00027945,7]
[388371236,1759128671230,-480.0,0.00027945,7]
[388371237,1759128671240,-3633.89,0.00027945,7]
[388371238,1759128671249,-480.0,0.00027945,7]
[388371239,1759128671258,-480.0,0.00027945,7]
[388371240,1759128671267,-1564.23,0.00027945,7]
[388371241,1759128671277,-480.0,0.00027945,7]
[388371242,1759128671287,-819.69,0.00027945,7]
[388371243,1759128671297,-1009.05,0.00027945,7]
[388371244,1759128671306,-480.0,0.00027945,7]
[388371245,1759128671315,-480.0,0.00027945,7]
[388371246,1759128671326,-2396.98,0.00027945,7]
[388371247,1759128671337,-480.0,0.00027945,7]
[388371248,1759128671346,-1334.28,0.00027945,7]
[388371249,1759128671355,-480.0,0.00027945,7]
[388371250,1759128671365,-1330.93,0.00027945,7]
[388371251,1759128671374,-480.0,0.00027945,7]
[388371252,1759128671384,-480.0,0.00027945,7]
[388371253,1759128671393,-5104.06,0.00027945,7]
[388371254,1759128671402,-480.0,0.00027945,7]
[388371255,1759128671412,-569.9,0.00027945,7]
[388371256,1759128671421,-480.0,0.00027945,7]
[388371257,1759128671430,-1965.67,0.00027945,7]
[388371258,1759128671440,-575.08,0.00027945,7]
[388371259,1759128671449,-480.0,0.00027945,7]
[388371260,1759128671459,-974.92,0.00027945,7]
[388371261,1759128671468,-480.0,0.00027945,7]
[388371262,1759128671478,-2829.97,0.00027945,7]
[388371263,1759128671487,-212.44,0.00027945,7]
[388371264,1759128671496,-480.0,0.00027945,7]
[388371265,1759128671506,-480.0,0.00027945,7]
[388371266,1759128671515,-1118.15,0.00027945,7]
[388371267,1759128671524,-3825.34,0.00027945,7]
[388371268,1759128671533,-480.0,0.00027945,7]
[388371269,1759128671544,-480.0,0.00027945,7]
[388371270,1759128671554,-2236.13,0.00027945,7]
[388371271,1759128671563,-847.37,0.00027945,7]
[388371272,1759128671573,-480.0,0.00027945,7]
[388371273,1759128671582,-480.0,0.00027945,7]
[388371274,1759128671592,-2051.31,0.00027945,7]
[388371275,1759128671602,-902.33,0.00027945,7]
[388371276,1759128671612,-480.0,0.00027945,7]
[388371277,1759128671622,-781.76,0.00027945,7]
[388371278,1759128671632,-7914.07,0.00027945,7]
[388371279,1759128671641,-480.0,0.00027945,7]
[388371280,1759128671650,-480.0,0.00027945,7]
[388371281,1759128671660,-3409.13,0.00027945,7]
[388371282,1759128671669,-480.0,0.00027945,7]
[388371283,1759128671841,-916.49,0.00027945,7]
[388371284,1759128671855,-480.0,0.00027945,7]
[388371285,1759128671865,-551.24,0.00027945,7]
[388371286,1759128671875,-339.50029271,0.00027945,7]
[388371287,1759128671884,-480.0,0.00027945,7]
[388371288,1759128671893,-219.5273721,0.00027945,7]
[388371289,1759128671903,-490.95,0.00027945,7]
[388371290,1759128671912,-480.0,0.00027945,7]
[388371291,1759128671921,-2193.91,0.00027945,7]
[388371292,1759128671930,-3253.06,0.00027945,7]
[388371293,1759128671939,-922.81,0.00027945,7]
[388371294,1759128671949,-824.29,0.00027945,7]
[388371295,1759128671959,-480.0,0.00027945,7]
[388371296,1759128671968,-837.48,0.00027945,7]
[388371297,1759128671977,-480.0,0.00027945,7]
[388371298,1759128671986,-882.5,0.00027945,7]
[388371299,1759128671997,-480.0,0.00027945,7]
[388371300,1759128672006,-480.0,0.00027945,7]
[388371301,1759128672015,-480.0,0.00027945,7]
[388371302,1759128672025,-897.11,0.00027945,7]
[388371303,1759128672035,-801.19,0.00027945,7]
[388371304,1759128672046,-990.29,0.00027945,7]
[388371305,1759128672056,-553.63,0.00027945,7]
[388371306,1759128672065,-541.96866157,0.00027945,7]
[388371307,1759128672074,-480.0,0.00027945,7]
[388371308,1759128672083,-722.13,0.00027945,7]
[388371309,1759128672092,-585.67,0.00027945,7]
[388371310,1759128672101,-480.0,0.00027945,7]
[388371311,1759128672111,-610.29,0.00027945,7]
[388371312,1759128672120,-984.11,0.00027945,7]
[388371313,1759128672130,-1446.7,0.00027945,7]
[388371314,1759128672139,-637.35,0.00027945,7]
[388371315,1759128672149,-480.0,0.00027945,7]
[388371316,1759128672158,-480.0,0.00027945,7]
[388371317,1759128672167,-2208.99,0.00027945,7]
[388371318,1759128672177,-582.08,0.00027945,7]
[388371319,1759128672186,-480.0,0.00027945,7]
[388371320,1759128672195,-939.9,0.00027945,7]
[388371321,1759128672204,-480.0,0.00027945,7]
[388371322,1759128672213,-3566.93,0.00027945,7]
[388371323,1759128672223,-1917.52,0.00027945,7]
[388371324,1759128672232,-1321.69,0.00027945,7]
[388371325,1759128672242,-480.0,0.00027945,7]
[388371326,1759128672251,-480.0,0.00027945,7]
[388371327,1759128672260,-480.0,0.00027945,7]
[388371328,1759128672270,-1258.07,0.00027945,7]
[388371329,1759128672280,-485.81,0.00027945,7]
[388371330,1759128672289,-891.2,0.00027945,7]
[388371331,1759128672299,-480.0,0.00027945,7]
[388371332,1759128672309,-6874.54,0.00027945,3]
[388371333,1759128672319,-8788.1,0.00027945,7]
[388371334,1759128672331,-480.0,0.00027945,7]
[388371335,1759128672341,-480.0,0.00027945,7]
[388371336,1759128672351,-250.0,0.00027945,5]
[388371337,1759128672361,-500.0,0.00027973,5]
[388371338,1759128672372,-593.27231853,0.00027973,5]
[388371339,1759128672382,-500.0,0.00027973,5]
[388371340,1759128672391,-501.9754873,0.00027973,5]
[388371341,1759128672402,-500.0,0.00027973,2]
[388371342,1759128672411,-501.4504098,0.00027973,5]
[388371343,1759128672421,-500.0,0.00027973,5]
[388371344,1759128672431,-501.54788201,0.00027973,5]
[388371345,1759128672440,-500.0,0.00027973,5]
[388371346,1759128672450,-501.78461422,0.00027973,5]
[388371347,1759128672460,-500.0,0.00027973,5]
[388371348,1759128672470,-159.65849985,0.00027973,5]
[388371349,1759128672479,-500.0,0.00027973,5]
[388371350,1759128672489,-500.0,0.00027973,2]
[388371351,1759128672499,-231.55074852,0.00028,2]
[388371352,1759128672508,-189.40172226,0.00028,10]
[388371353,1759128672517,-261.97,0.00028,14]
[388371354,1759128672527,-1059.88,0.00028,2]
[388371355,1759128672536,-170.64745108,0.00028027,30]
[388371356,1759128672546,-208.0,0.00028087,2]
[388371357,1759128672556,-168.0,0.00028092,2]
[388371358,1759128672577,-184.93443725,0.00028096,2]
[388371359,1759128672587,-184.93443725,0.00028096,2]
[388371360,1759128672596,-233.87608454,0.000281,7]
[388371361,1759128672605,-208.0,0.00028134,2]
[388371362,1759128672615,-1200.0,0.00028135,2]
[388371363,1759128672624,-1059.88,0.0002814,2]
[388371364,1759128672633,-208.0,0.00028141,2]
[388371365,1759128672642,-170.64745108,0.00028164,30]
[388371366,1759128672652,-721.0,0.00028195,2]
[388371367,1759128672662,-302.0,0.00028195,2]
[388371368,1759128672671,-159.84886694,0.00028195,2]
[388371369,1759128672680,-151.0,0.00028195,2]
[388371370,1759128672690,-250.0,0.000282,7]
[388371371,1759128672699,-250.0,0.000282,7]
[388371372,1759128672708,-250.4,0.000282,7]
[388371373,1759128672717,-1000.0,0.000282,2]
[388371374,1759128672726,-1000.0,0.000282,2]
[388371375,1759128672736,-1000.0,0.000282,2]
[388371376,1759128672746,-1000.0,0.000282,2]
[388371377,1759128672755,-1000.0,0.000282,2]
[388371378,1759128672764,-1000.0,0.000282,2]
[388371379,1759128672773,-1000.0,0.000282,2]
[388371380,1759128672783,-1000.0,0.000282,2]
[388371381,1759128672792,-1000.0,0.000282,2]
[388371382,1759128672802,-200.0,0.00028218,10]
[388371383,1759128672811,-151.0,0.00028219,7]
[388371384,1759128672820,-160.0,0.00028219,3]
[388371385,1759128672829,-531.68,0.00028219,7]
[388371386,1759128672839,-480.0,0.00028219,7]
[388371387,1759128672848,-784.03,0.00028219,7]
[388371388,1759128672857,-480.0,0.00028219,7]
[388371389,1759128672866,-500.99,0.00028219,7]
[388371390,1759128672875,-480.11,0.00028219,7]
[388371391,1759128672884,-480.0,0.00028219,7]
[388371392,1759128672894,-526.44,0.00028219,7]
[388371393,1759128672903,-480.0,0.00028219,7]
[388371394,1759128672912,-480.0,0.00028219,7]
[388371395,1759128672921,-480.0,0.00028219,7]
[388371396,1759128672930,-437.62677107,0.00028219,7]
[388371397,1759128672940,-480.0,0.00028219,7]
[388371398,1759128672949,-549.04,0.00028219,7]
[388371399,1759128672959,-480.0,0.00028219,7]
[388371400,1759128672969,-480.0,0.00028219,7]
[388371401,1759128672978,-480.0,0.00028219,7]
[388371402,1759128672987,-480.0,0.00028219,7]
[388371403,1759128672996,-895.63,0.00028219,7]
[388371404,1759128673005,-480.0,0.00028219,7]
[388371405,1759128673015,-480.0,0.00028219,7]
[388371406,1759128673024,-547.34,0.00028219,7]
[388371407,1759128673033,-547.34,0.00028219,7]
[388371408,1759128673043,-675.54,0.00028219,7]
[388371409,1759128673052,-480.0,0.00028219,7]
[388371410,1759128673061,-480.0,0.00028219,7]
[388371411,1759128673070,-497.16,0.00028219,7]
[388371412,1759128673080,-351.56321253,0.00028219,7]
[388371413,1759128673089,-480.0,0.00028219,7]
[388371414,1759128673098,-480.0,0.00028219,7]
[388371415,1759128673107,-480.0,0.00028219,7]
[388371416,1759128673116,-480.0,0.00028219,7]
[388371417,1759128673126,-480.0,0.00028219,7]
[388371418,1759128673135,-480.0,0.00028219,7]
[388371419,1759128673144,-480.0,0.00028219,7]
[388371420,1759128673153,-769.77,0.00028219,7]
[388371421,1759128673163,-480.0,0.00028219,7]
[388371422,1759128673172,-480.0,0.00028219,7]
[388371423,1759128673182,-480.0,0.00028219,7]
[388371424,1759128673191,-480.0,0.00028219,7]
[388371425,1759128673200,-480.0,0.00028219,7]
[388371426,1759128673210,-812.19,0.00028219,7]
[388371427,1759128673220,-474.14777006,0.00028219,7]
[388371428,1759128673229,-934.61,0.00028219,7]
[388371429,1759128673238,-480.0,0.00028219,7]
[388371430,1759128673247,-467.86377122,0.00028219,7]
[388371431,1759128673256,-687.55,0.00028219,7]
[388371432,1759128673266,-661.17,0.00028219,7]
[388371433,1759128673275,-480.0,0.00028219,7]
[388371434,1759128673285,-480.0,0.00028219,7]
[388371435,1759128673294,-480.0,0.00028219,7]
[388371436,1759128673303,-500.0,0.00028219,7]
[388371437,1759128673312,-500.0,0.00028219,7]
[388371438,1759128673322,-480.0,0.00028219,7]
[388371439,1759128673335,-480.0,0.00028219,7]
[388371440,1759128673344,-480.0,0.00028219,7]
[388371441,1759128673354,-797.85,0.00028219,7]
[388371442,1759128673363,-480.0,0.00028219,7]
[388371443,1759128673374,-674.33,0.00028219,7]
[388371444,1759128673384,-500.66,0.00028219,7]
[388371445,1759128673393,-480.0,0.00028219,7]
[388371446,1759128673403,-705.39,0.00028219,7]
[388371447,1759128673413,-486.91509141,0.00028219,7]
[388371448,1759128673423,-480.0,0.00028219,7]
[388371449,1759128673433,-480.0,0.00028219,7]
[388371450,1759128673443,-480.0,0.00028219,7]
[388371451,1759128673452,-480.0,0.00028219,7]
[388371452,1759128673462,-480.0,0.00028219,7]
[388371453,1759128673471,-480.0,0.00028219,7]
[388371454,1759128673480,-480.0,0.00028219,7]
[388371455,1759128673490,-480.0,0.00028219,7]
[388371456,1759128673499,-480.0,0.00028219,7]
[388371457,1759128673508,-480.0,0.00028219,7]
[388371458,1759128673518,-480.0,0.00028219,7]
[388371459,1759128673528,-531.84,0.00028219,7]
[388371460,1759128673537,-552.57,0.00028219,7]
[388371461,1759128673547,-480.0,0.00028219,7]
[388371462,1759128673556,-553.57,0.00028219,7]
[388371463,1759128673566,-480.0,0.00028219,7]
[388371464,1759128673575,-480.0,0.00028219,7]
[388371465,1759128673584,-480.0,0.00028219,7]
[388371466,1759128673594,-480.0,0.00028219,7]
[388371467,1759128673603,-480.0,0.00028219,7]
[388371468,1759128673612,-480.0,0.00028219,7]
[388371469,1759128673622,-480.0,0.00028219,7]
[388371470,1759128673631,-480.0,0.00028219,7]
[388371471,1759128673640,-525.5,0.00028219,7]
[388371472,1759128673649,-882.83,0.00028219,7]
[388371473,1759128673658,-575.31,0.00028219,7]
[388371474,1759128673667,-480.0,0.00028219,7]
[388371475,1759128673677,-480.0,0.00028219,7]
[388371476,1759128673687,-577.16,0.00028219,7]
[388371477,1759128673696,-480.0,0.00028219,7]
[388371478,1759128673706,-855.14,0.00028219,7]
[388371479,1759128673715,-480.0,0.00028219,7]
[388371480,1759128673725,-669.32,0.00028219,7]
[388371481,1759128673856,-669.16,0.00028219,7]
[388371482,1759128673866,-773.2,0.00028219,7]
[388371483,1759128673876,-480.0,0.00028219,7]
[388371484,1759128673885,-785.1,0.00028219,7]
[388371485,1759128673895,-480.0,0.00028219,7]
[388371486,1759128673904,-528.01,0.00028219,7]
[388371487,1759128673914,-480.0,0.00028219,7]
[388371488,1759128673923,-969.73,0.00028219,7]
[388371489,1759128673933,-480.0,0.00028219,7]
[388371490,1759128673942,-480.0,0.00028219,7]
[388371491,1759128673952,-480.0,0.00028219,7]
[388371492,1759128673961,-480.0,0.00028219,7]
[388371493,1759128673971,-480.0,0.00028219,7]
[388371494,1759128673981,-725.1,0.00028219,7]
[388371495,1759128673991,-777.59,0.00028219,7]
[388371496,1759128674000,-480.0,0.00028219,7]
[388371497,1759128674009,-480.0,0.00028219,7]
[388371498,1759128674019,-480.0,0.00028219,7]
[388371499,1759128674028,-1514.67,0.00028219,7]
[388371500,1759128674037,-1176.2,0.00028219,7]
[388371501,1759128674050,-731.05,0.00028219,7]
[388371502,1759128674059,-480.0,0.00028219,7]
[388371503,1759128674069,-520.0,0.00028219,3]
[388371504,1759128674079,-484.23940866,0.00028219,7]
[388371505,1759128674089,-535.71,0.00028219,7]
[388371506,1759128674098,-480.0,0.00028219,7]
[388371507,1759128674108,-523.15,0.00028219,7]
[388371508,1759128674117,-480.0,0.00028219,7]
[388371509,1759128674126,-992.04,0.00028219,7]
[388371510,1759128674135,-480.0,0.00028219,7]
[388371511,1759128674145,-480.0,0.00028219,7]
[388371512,1759128674154,-519.65,0.00028219,7]
[388371513,1759128674164,-480.0,0.00028219,7]
[388371514,1759128674173,-480.0,0.00028219,7]
[388371515,1759128674183,-507.86,0.00028219,7]
[388371516,1759128674192,-903.03,0.00028219,7]
[388371517,1759128674202,-592.56,0.00028219,7]
[388371518,1759128674211,-480.0,0.00028219,7]
[388371519,1759128674220,-959.41,0.00028219,7]
[388371520,1759128674230,-480.0,0.00028219,7]
[388371521,1759128674239,-579.87,0.00028219,7]
[388371522,1759128674249,-621.27,0.00028219,7]
[388371523,1759128674258,-522.05,0.00028219,7]
[388371524,1759128674267,-601.42244226,0.00028219,7]
[388371525,1759128674276,-480.0,0.00028219,7]
[388371526,1759128674286,-1108.83,0.00028219,7]
[388371527,1759128674295,-707.51,0.00028219,7]
[388371528,1759128674305,-480.0,0.00028219,7]
[388371529,1759128674315,-555.1,0.00028219,7]
[388371530,1759128674326,-486.75808927,0.00028219,7]
[388371531,1759128674338,-874.71,0.00028219,7]
[388371532,1759128674347,-480.0,0.00028219,7]
[388371533,1759128674356,-480.0,0.00028219,7]
[388371534,1759128674367,-923.12,0.00028219,7]
[388371535,1759128674376,-848.74,0.00028219,7]
[388371536,1759128674384,-677.51,0.00028219,7]
[388371537,1759128674394,-621.16,0.00028219,7]
[388371538,1759128674405,-480.0,0.00028219,7]
[388371539,1759128674416,-768.05,0.00028219,7]
[388371540,1759128674425,-480.0,0.00028219,7]
[388371541,1759128674434,-480.0,0.00028219,7]
[388371542,1759128674443,-400.0,0.00028219,7]
[388371543,1759128674453,-649.28,0.00028219,7]
[388371544,1759128674462,-901.78,0.00028219,7]
[388371545,1759128674472,-674.0,0.00028219,7]
[388371546,1759128674481,-471.52980692,0.00028219,7]
[388371547,1759128674491,-480.0,0.00028219,7]